fUSD/lending_fUSD_20240419
["ID","MTS","AMOUNT","RATE_DAILY","PERIOD"]
[322961524,1713547871910,-609.78,0.00014246,2]
[322961525,1713547871920,-946.74,0.00014246,2]
[322961526,1713547871930,-1147.96,0.00014246,2]
[322961527,1713547871940,-1353.39,0.00014246,2]
[322961528,1713547871951,-590.73,0.00014246,2]
[322961529,1713547871961,-917.99,0.00014246,2]
[322961530,1713547871971,-645.77,0.00014246,2]
[322961531,1713547871982,-368.49408891,0.00014246,2]
[322961532,1713547871992,-500.0,0.00014246,2]
[322961533,1713547872002,-991.95,0.00014246,2]
[322961534,1713547872012,-1531.51,0.00014246,2]
[322961535,1713547872023,-500.0,0.00014246,2]
[322961536,1713547872033,-614.33,0.00014246,2]
[322961537,1713547872043,-1683.91,0.00014246,2]
[322961538,1713547872052,-466.03,0.00014246,2]
[322961539,1713547872062,-500.0,0.00014246,2]
[322961540,1713547872072,-1659.79,0.00014246,2]
[322961541,1713547872082,-547.32,0.00014246,2]
[322961542,1713547872092,-554.76,0.00014246,2]
[322961543,1713547872101,-727.72,0.00014246,2]
[322961544,1713547872112,-2633.24,0.00014246,2]
[322961545,1713547872126,-541.98,0.00014246,2]
[322961546,1713547872137,-1541.82,0.00014246,2]
[322961547,1713547872146,-1982.78,0.00014246,2]
[322961548,1713547872156,-2067.07,0.00014246,2]
[322961549,1713547872166,-500.0,0.00014246,2]
[322961550,1713547872175,-1879.91,0.00014246,2]
[322961551,1713547872185,-500.0,0.00014246,2]
[322961552,1713547872196,-572.70036582,0.00014246,2]
[322961553,1713547872207,-925.07,0.00014246,2]
[322961554,1713547872217,-2089.21,0.00014246,2]
[322961555,1713547872227,-2571.24,0.00014246,2]
[322961556,1713547872237,-500.0,0.00014246,2]
[322961557,1713547872247,-920.34,0.00014246,2]
[322961558,1713547872256,-500.0,0.00014246,2]
[322961559,1713547872266,-500.0,0.00014246,2]
[322961560,1713547872276,-733.19,0.00014246,2]
[322961561,1713547872285,-1286.35,0.00014246,2]
[322961562,1713547872295,-738.14,0.00014246,2]
[322961563,1713547872305,-648.77,0.00014246,2]
[322961564,1713547872315,-1793.39,0.00014246,2]
[322961565,1713547872550,-1073.53,0.00014246,2]
[322961566,1713547872574,-501.84,0.00014246,2]
[322961567,1713547872583,-620.08,0.00014246,2]
[322961568,1713547872594,-582.39,0.00014246,2]
[322961569,1713547872603,-500.0,0.00014246,2]
[322961570,1713547872613,-500.0,0.00014246,2]
[322961571,1713547872626,-500.0,0.00014246,2]
[322961572,1713547872636,-500.0,0.00014246,2]
[322961573,1713547872645,-500.0,0.00014246,2]
[322961574,1713547872655,-826.91,0.00014246,2]
[322961575,1713547872665,-520.61,0.00014246,2]
[322961576,1713547872675,-500.0,0.00014246,2]
[322961577,1713547872684,-3814.46,0.00014246,2]
[322961578,1713547872694,-500.0,0.00014246,2]
[322961579,1713547872704,-1444.61,0.00014246,2]
[322961580,1713547872713,-1239.67,0.00014246,2]
[322961581,1713547872723,-545.09,0.00014246,2]
[322961582,1713547872732,-500.0,0.00014246,2]
[322961583,1713547872742,-500.0,0.00014246,2]
[322961584,1713547872752,-500.0,0.00014246,2]
[322961585,1713547872761,-778.47,0.00014246,2]
[322961586,1713547872771,-500.0,0.00014246,2]
[322961587,1713547872781,-717.84,0.00014246,2]
[322961588,1713547872791,-562.43,0.00014246,2]
[322961589,1713547872800,-500.0,0.00014246,2]
[322961590,1713547872810,-534.84,0.00014246,2]
[322961591,1713547872819,-500.0,0.00014246,2]
[322961592,1713547872830,-1476.82,0.00014246,2]
[322961593,1713547872839,-1833.64,0.00014246,2]
[322961594,1713547872849,-1543.13,0.00014246,2]
[322961595,1713547872859,-931.07,0.00014246,2]
[322961596,1713547872869,-514.51,0.00014246,2]
[322961597,1713547872881,-500.0,0.00014246,2]
[322961598,1713547872891,-500.0,0.00014246,2]
[322961599,1713547872900,-924.5,0.00014246,2]
[322961600,1713547872910,-502.53,0.00014246,2]
[322961601,1713547872920,-986.48,0.00014246,2]
[322961602,1713547872931,-3429.89,0.00014246,2]
[322961603,1713547872941,-500.0,0.00014246,2]
[322961604,1713547872950,-500.0,0.00014246,2]
[322961605,1713547872960,-500.0,0.00014246,2]
[322961606,1713547872970,-1384.12,0.00014246,2]
[322961607,1713547872980,-1529.43,0.00014246,2]
[322961608,1713547872989,-713.45,0.00014246,2]
[322961609,1713547872999,-527.25,0.00014246,2]
[322961610,1713547873009,-500.0,0.00014246,2]
[322961611,1713547873020,-1481.71,0.00014246,2]
[322961612,1713547873031,-1823.94,0.00014246,2]
[322961613,1713547873042,-679.73,0.00014246,2]
[322961614,1713547873051,-500.0,0.00014246,2]
[322961615,1713547873062,-500.0,0.00014246,2]
[322961616,1713547873071,-1763.78,0.00014246,2]
[322961617,1713547873081,-830.36,0.00014246,2]
[322961618,1713547873091,-500.0,0.00014246,2]
[322961619,1713547873101,-4120.99,0.00014246,2]
[322961620,1713547873110,-500.0,0.00014246,2]
[322961621,1713547873120,-1450.48,0.00014246,2]
[322961622,1713547873134,-500.0,0.00014246,2]
[322961623,1713547873144,-500.0,0.00014246,2]
[322961624,1713547873153,-1589.95,0.00014246,2]
[322961625,1713547873163,-500.0,0.00014246,2]
[322961626,1713547873173,-1251.26,0.00014246,2]
[322961627,1713547873183,-689.87,0.00014246,2]
[322961628,1713547873193,-655.83,0.00014246,2]
[322961629,1713547873203,-1698.86,0.00014246,2]
[322961630,1713547873213,-500.0,0.00014246,2]
[322961631,1713547873223,-500.0,0.00014246,2]
[322961632,1713547873233,-1066.59,0.00014246,2]
[322961633,1713547873244,-3508.76,0.00014246,2]
[322961634,1713547873254,-1108.37,0.00014246,2]
[322961635,1713547873264,-1759.06,0.00014246,2]
[322961636,1713547873276,-671.87,0.00014246,2]
[322961637,1713547873286,-900.9,0.00014246,2]
[322961638,1713547873297,-919.21,0.00014246,2]
[322961639,1713547873306,-712.97,0.00014246,2]
[322961640,1713547873316,-710.37,0.00014246,2]
[322961641,1713547873326,-500.0,0.00014246,2]
[322961642,1713547873335,-1505.91,0.00014246,2]
[322961643,1713547873345,-500.0,0.00014246,2]
[322961644,1713547873355,-500.0,0.00014246,2]
[322961645,1713547873364,-2296.24,0.00014246,2]
[322961646,1713547873376,-824.87,0.00014246,2]
[322961647,1713547873386,-506.9,0.00014246,2]
[322961648,1713547873396,-2853.29,0.00014246,2]
[322961649,1713547873406,-500.0,0.00014246,2]
[322961650,1713547873416,-185.13870746,0.00014246,2]
[322961651,1713547873428,-822.25,0.00014246,2]
[322961652,1713547873438,-537.9,0.00014246,2]
[322961653,1713547873448,-894.82,0.00014246,2]
[322961654,1713547873458,-563.06,0.00014246,2]
[322961655,1713547873468,-1134.71,0.00014246,2]
[322961656,1713547873478,-1499.52,0.00014246,2]
[322961657,1713547873488,-500.0,0.00014246,2]
[322961658,1713547873498,-903.85,0.00014246,2]
[322961659,1713547873508,-1557.7,0.00014246,2]
[322961660,1713547873517,-500.0,0.00014246,2]
[322961661,1713547873527,-786.62,0.00014246,2]
[322961662,1713547873537,-500.0,0.00014246,2]
[322961663,1713547873547,-500.0,0.00014246,2]
[322961664,1713547873556,-1546.59,0.00014246,2]
[322961665,1713547873566,-795.02,0.00014246,2]
[322961666,1713547873575,-630.22,0.00014246,2]
[322961667,1713547873585,-500.0,0.00014246,2]
[322961668,1713547873595,-500.0,0.00014246,2]
[322961669,1713547873605,-621.78,0.00014246,2]
[322961670,1713547873615,-1326.35,0.00014246,2]
[322961671,1713547873627,-500.0,0.00014246,2]
[322961672,1713547873637,-500.0,0.00014246,2]
[322961673,1713547873646,-519.1,0.00014246,2]
[322961674,1713547873656,-764.79,0.00014246,2]
[322961675,1713547873665,-500.0,0.00014246,2]
[322961676,1713547873675,-500.0,0.00014246,2]
[322961677,1713547873685,-500.0,0.00014246,2]
[322961678,1713547873694,-2412.88,0.00014246,2]
[322961679,1713547873704,-1738.05,0.00014246,2]
[322961680,1713547873713,-636.42,0.00014246,2]
[322961681,1713547873723,-938.98,0.00014246,2]
[322961682,1713547873734,-545.94,0.00014246,2]
[322961683,1713547873744,-531.08,0.00014246,2]
[322961684,1713547873753,-500.0,0.00014246,2]
[322961685,1713547873763,-500.0,0.00014246,2]
[322961686,1713547873773,-2340.34,0.00014246,2]
[322961687,1713547873783,-608.04,0.00014246,2]
[322961688,1713547873793,-500.0,0.00014246,2]
[322961689,1713547873802,-833.04,0.00014246,2]
[322961690,1713547873812,-1053.89,0.00014246,2]
[322961691,1713547873822,-500.0,0.00014246,2]
[322961692,1713547873832,-855.66,0.00014246,2]
[322961693,1713547873842,-500.0,0.00014246,2]
[322961694,1713547873851,-955.48,0.00014246,2]
[322961695,1713547873861,-642.26,0.00014246,2]
[322961696,1713547873871,-841.68,0.00014246,2]
[322961697,1713547873885,-500.0,0.00014246,2]
[322961698,1713547873894,-500.0,0.00014246,2]
[322961699,1713547873903,-5268.86,0.00014246,2]
[322961700,1713547873913,-879.59,0.00014246,2]
[322961701,1713547873922,-1343.94,0.00014246,2]
[322961702,1713547873932,-500.0,0.00014246,2]
[322961703,1713547873942,-4733.91,0.00014246,2]
[322961704,1713547873952,-1082.66,0.00014246,2]
[322961705,1713547873962,-500.0,0.00014246,2]
[322961706,1713547873973,-500.0,0.00014246,2]
[322961707,1713547873983,-500.0,0.00014246,2]
[322961708,1713547873994,-1090.92,0.00014246,2]
[322961709,1713547874004,-1759.6,0.00014246,2]
[322961710,1713547874014,-500.0,0.00014246,2]
[322961711,1713547874024,-742.94,0.00014246,2]
[322961712,1713547874034,-567.95,0.00014246,2]
[322961713,1713547874043,-500.0,0.00014246,2]
[322961714,1713547874053,-500.0,0.00014246,2]
[322961715,1713547874063,-4863.74,0.00014246,2]
[322961716,1713547874073,-622.47,0.00014246,2]
[322961717,1713547874083,-2946.36,0.00014246,2]
[322961718,1713547874093,-500.0,0.00014246,2]
[322961719,1713547874103,-865.24,0.00014246,2]
[322961720,1713547874112,-500.0,0.00014246,2]
[322961721,1713547874122,-705.94,0.00014246,2]
[322961722,1713547874139,-1173.2,0.00014246,2]
[322961723,1713547874150,-1040.86,0.00014246,2]
[322961724,1713547874161,-977.04,0.00014246,2]
[322961725,1713547874171,-500.0,0.00014246,2]
[322961726,1713547874181,-1709.0,0.00014246,2]
[322961727,1713547874192,-1225.48,0.00014246,2]
[322961728,1713547874202,-1647.32,0.00014246,2]
[322961729,1713547874212,-1418.14,0.00014246,2]
[322961730,1713547874221,-1311.75,0.00014246,2]
[322961731,1713547874231,-2658.56,0.00014246,2]
[322961732,1713547874241,-263.26,0.00014246,2]
[322961733,1713547874255,-969.72,0.00014246,2]
[322961734,1713547874265,-500.0,0.00014246,2]
[322961735,1713547874275,-500.0,0.00014246,2]
[322961736,1713547874286,-6579.29,0.00014246,2]
[322961737,1713547874295,-15195.99,0.00014246,2]
[322961738,1713547874305,-500.0,0.00014246,2]
[322961739,1713547874315,-1735.44,0.00014246,2]
[322961740,1713547874325,-1421.48,0.00014246,2]
[322961741,1713547874335,-2819.15,0.00014246,2]
[322961742,1713547874345,-755.96,0.00014246,2]
[322961743,1713547874355,-11876.02,0.00014246,2]
[322961744,1713547874364,-539.84,0.00014246,2]
[322961745,1713547874380,-3560.07,0.00014246,2]
[322961746,1713547874390,-1491.97,0.00014246,2]
[322961747,1713547874400,-500.0,0.00014246,2]
[322961748,1713547874409,-500.0,0.00014246,2]
[322961749,1713547874420,-500.0,0.00014246,2]
[322961750,1713547874430,-765.25,0.00014246,2]
[322961751,1713547874442,-1279.81,0.00014246,2]
[322961752,1713547874454,-5736.72,0.00014246,2]
[322961753,1713547874467,-508.97,0.00014246,2]
[322961754,1713547874478,-1088.04,0.00014246,2]
[322961755,1713547874488,-629.73,0.00014246,2]
[322961756,1713547874498,-500.0,0.00014246,2]
[322961757,1713547874507,-575.51673968,0.00014246,2]
[322961758,1713547874519,-6573.7,0.00014246,2]
[322961759,1713547874529,-45218.75,0.00014246,2]
[322961760,1713547874539,-500.0,0.00014246,2]
[322961761,1713547874548,-500.0,0.00014246,2]
[322961762,1713547874557,-5396.18,0.00014246,2]
[322961763,1713547874567,-685.5,0.00014246,2]
[322961764,1713547874578,-500.0,0.00014246,2]
[322961765,1713547874587,-52964.1,0.00014246,2]
[322961766,1713547874597,-558.14,0.00014246,2]
[322961767,1713547874608,-1025.75,0.00014246,2]
[322961768,1713547874617,-681.73,0.00014246,2]
[322961769,1713547874633,-500.0,0.00014246,2]
[322961770,1713547874643,-2662.99,0.00014246,2]
[322961771,1713547874652,-2204.22,0.00014246,2]
[322961772,1713547874662,-5965.37,0.00014246,2]
[322961773,1713547874672,-3247.07,0.00014246,2]
[322961774,1713547874682,-500.0,0.00014246,2]
[322961775,1713547874691,-12227.84,0.00014246,2]
[322961776,1713547874701,-674.06,0.00014246,2]
[322961777,1713547874710,-500.0,0.00014246,2]
[322961778,1713547874720,-500.0,0.00014246,2]
[322961779,1713547874730,-4761.03,0.00014246,2]
[322961780,1713547874739,-4123.91,0.00014246,2]
[322961781,1713547874749,-3343.38,0.00014246,2]
[322961782,1713547874759,-1367.3,0.00014246,2]
[322961783,1713547874768,-741.07,0.00014246,2]
[322961784,1713547874778,-757.02,0.00014246,2]
[322961785,1713547874788,-1610.38,0.00014246,2]
[322961786,1713547874797,-500.0,0.00014246,2]
[322961787,1713547874807,-500.0,0.00014246,2]
[322961788,1713547874817,-500.0,0.00014246,2]
[322961789,1713547874826,-5484.98,0.00014246,2]
[322961790,1713547874836,-3916.21,0.00014246,2]
[322961791,1713547874846,-6276.92,0.00014246,2]
[322961792,1713547874855,-928.0,0.00014246,2]
[322961793,1713547874865,-500.0,0.00014246,2]
[322961794,1713547874880,-500.0,0.00014246,2]
[322961795,1713547874891,-588.77,0.00014246,2]
[322961796,1713547874900,-500.0,0.00014246,2]
[322961797,1713547874910,-500.0,0.00014246,2]
[322961798,1713547874920,-2018.33,0.00014246,2]
[322961799,1713547874930,-3262.35,0.00014246,2]
[322961800,1713547874939,-615.68,0.00014246,2]
[322961801,1713547875040,-500.0,0.00014246,2]
[322961802,1713547875051,-585.61,0.00014246,2]
[322961803,1713547875061,-711.84,0.00014246,2]
[322961804,1713547875071,-6581.21,0.00014246,2]
[322961805,1713547875081,-2216.57,0.00014246,2]
[322961806,1713547875091,-3455.3,0.00014246,2]
[322961807,1713547875101,-11383.33,0.00014246,2]
[322961808,1713547875111,-1041.22,0.00014246,2]
[322961809,1713547875120,-500.0,0.00014246,2]
[322961810,1713547875138,-500.0,0.00014246,2]
[322961811,1713547875148,-4221.78,0.00014246,2]
[322961812,1713547875158,-500.0,0.00014246,2]
[322961813,1713547875167,-500.0,0.00014246,2]
[322961814,1713547875177,-510.55,0.00014246,2]
[322961815,1713547875186,-2544.65,0.00014246,2]
[322961816,1713547875196,-5227.38,0.00014246,2]
[322961817,1713547875206,-1412.66,0.00014246,2]
[322961818,1713547875215,-2222.35,0.00014246,2]
[322961819,1713547875225,-500.0,0.00014246,2]
[322961820,1713547875235,-500.34,0.00014246,2]
[322961821,1713547875244,-1381.75,0.00014246,2]
[322961822,1713547875254,-500.0,0.00014246,2]
[322961823,1713547875263,-500.0,0.00014246,2]
[322961824,1713547875273,-1200.91,0.00014246,2]
[322961825,1713547875283,-1841.57,0.00014246,2]
[322961826,1713547875292,-1955.31,0.00014246,2]
[322961827,1713547875302,-725.96,0.00014246,2]
[322961828,1713547875311,-34683.45,0.00014246,2]
[322961829,1713547875321,-500.0,0.00014246,2]
[322961830,1713547875333,-3026.62,0.00014246,2]
[322961831,1713547875342,-500.0,0.00014246,2]
[322961832,1713547875352,-1352.02,0.00014246,2]
[322961833,1713547875361,-500.0,0.00014246,2]
[322961834,1713547875371,-1187.41,0.00014246,2]
[322961835,1713547875385,-2477.82,0.00014246,2]
[322961836,1713547875395,-838.58,0.00014246,2]
[322961837,1713547875404,-48949.39,0.00014246,2]
[322961838,1713547875413,-500.0,0.00014246,2]
[322961839,1713547875423,-500.0,0.00014246,2]
[322961840,1713547875433,-2826.35,0.00014246,2]
[322961841,1713547875445,-1497.49,0.00014246,2]
[322961842,1713547875455,-4102.58,0.00014246,2]
[322961843,1713547875465,-500.0,0.00014246,2]
[322961844,1713547875476,-6421.67,0.00014246,2]
[322961845,1713547875485,-575.23,0.00014246,2]
[322961846,1713547875495,-500.0,0.00014246,2]
[322961847,1713547875505,-1636.84,0.00014246,2]
[322961848,1713547875515,-500.0,0.00014246,2]
[322961849,1713547875525,-665.25,0.00014246,2]
[322961850,1713547875535,-1692.21,0.00014246,2]
[322961851,1713547875544,-910.31,0.00014246,2]
[322961852,1713547875554,-890.38,0.00014246,2]
[322961853,1713547875563,-500.0,0.00014246,2]
[322961854,1713547875574,-500.0,0.00014246,2]
[322961855,1713547875583,-11912.4,0.00014246,2]
[322961856,1713547875592,-1407.06,0.00014246,2]
[322961857,1713547875601,-500.0,0.00014246,2]
[322961858,1713547875615,-306.87,0.00014246,2]
[322961859,1713547875627,-3819.63,0.00014246,2]
[322961860,1713547875637,-1218.69,0.00014246,2]
[322961861,1713547875647,-1156.25,0.00014246,2]
[322961862,1713547875657,-9676.28,0.00014246,2]
[322961863,1713547875666,-618.87,0.00014246,2]
[322961864,1713547875676,-3329.81,0.00014246,2]
[322961865,1713547875685,-500.0,0.00014246,2]
[322961866,1713547875695,-810.65,0.00014246,2]
[322961867,1713547875705,-500.0,0.00014246,2]
[322961868,1713547875715,-2283.33,0.00014246,2]
[322961869,1713547875724,-1446.72,0.00014246,2]
[322961870,1713547875734,-503.4,0.00014246,2]
[322961871,1713547875744,-4544.04,0.00014246,2]
[322961872,1713547875754,-4158.65,0.00014246,2]
[322961873,1713547875763,-500.0,0.00014246,2]
[322961874,1713547875773,-553.47,0.00014246,2]
[322961875,1713547875782,-1380.73,0.00014246,2]
[322961876,1713547875791,-500.0,0.00014246,2]
[322961877,1713547875802,-2200.13,0.00014246,2]
[322961878,1713547875811,-500.0,0.00014246,2]
[322961879,1713547875821,-5560.86,0.00014246,2]
[322961880,1713547875831,-500.0,0.00014246,2]
[322961881,1713547875841,-1355.17,0.00014246,2]
[322961882,1713547875850,-500.0,0.00014246,2]
[322961883,1713547875860,-563.91,0.00014246,2]
[322961884,1713547875870,-4919.23,0.00014246,2]
[322961885,1713547875886,-1002.43,0.00014246,2]
[322961886,1713547875896,-3973.79,0.00014246,2]
[322961887,1713547875906,-1060.49,0.00014246,2]
[322961888,1713547875915,-579.36,0.00014246,2]
[322961889,1713547875925,-763.03,0.00014246,2]
[322961890,1713547875935,-552.75,0.00014246,2]
[322961891,1713547875944,-4595.55,0.00014246,2]
[322961892,1713547875954,-2855.28,0.00014246,2]
[322961893,1713547875963,-500.0,0.00014246,2]
[322961894,1713547875972,-783.48,0.00014246,2]
[322961895,1713547875982,-1158.83,0.00014246,2]
[322961896,1713547875991,-6542.37,0.00014246,2]
[322961897,1713547876000,-500.0,0.00014246,2]
[322961898,1713547876010,-881.51,0.00014246,2]
[322961899,1713547876019,-883.28,0.00014246,2]
[322961900,1713547876029,-500.0,0.00014246,2]
[322961901,1713547876038,-594.1,0.00014246,2]
[322961902,1713547876048,-1421.77,0.00014246,2]
[322961903,1713547876058,-500.0,0.00014246,2]
[322961904,1713547876068,-981.0,0.00014246,2]
[322961905,1713547876077,-6206.7,0.00014246,2]
[322961906,1713547876087,-1052.1,0.00014246,2]
[322961907,1713547876097,-1538.61,0.00014246,2]
[322961908,1713547876107,-4085.8,0.00014246,2]
[322961909,1713547876117,-4062.96,0.00014246,2]
[322961910,1713547876131,-500.0,0.00014246,2]
[322961911,1713547876144,-1948.78,0.00014246,2]
[322961912,1713547876154,-500.0,0.00014246,2]
[322961913,1713547876164,-500.0,0.00014246,2]
[322961914,1713547876174,-17497.97,0.00014246,2]
[322961915,1713547876184,-1007.95,0.00014246,2]
[322961916,1713547876193,-2639.01,0.00014246,2]
[322961917,1713547876203,-4425.62,0.00014246,2]
[322961918,1713547876213,-500.79,0.00014246,2]
[322961919,1713547876223,-861.47,0.00014246,2]
[322961920,1713547876233,-500.0,0.00014246,2]
[322961921,1713547876243,-1492.61,0.00014246,2]
[322961922,1713547876253,-2352.54,0.00014246,2]
[322961923,1713547876263,-742.07,0.00014246,2]
[322961924,1713547876273,-500.0,0.00014246,2]
[322961925,1713547876282,-500.0,0.00014246,2]
[322961926,1713547876293,-2108.24,0.00014246,2]
[322961927,1713547876304,-1292.25,0.00014246,2]
[322961928,1713547876313,-3161.42,0.00014246,2]
[322961929,1713547876323,-4352.24,0.00014246,2]
[322961930,1713547876332,-685.18,0.00014246,2]
[322961931,1713547876342,-654.56,0.00014246,2]
[322961932,1713547876352,-2475.19,0.00014246,2]
[322961933,1713547876361,-527.43,0.00014246,2]
[322961934,1713547876371,-811.56,0.00014246,2]
[322961935,1713547876387,-1931.25,0.00014246,2]
[322961936,1713547876397,-2186.22,0.00014246,2]
[322961937,1713547876406,-3289.05,0.00014246,2]
[322961938,1713547876416,-500.0,0.00014246,2]
[322961939,1713547876426,-2127.86,0.00014246,2]
[322961940,1713547876437,-500.0,0.00014246,2]
[322961941,1713547876448,-500.0,0.00014246,2]
[322961942,1713547876457,-634.17,0.00014246,2]
[322961943,1713547876467,-1946.84,0.00014246,2]
[322961944,1713547876478,-530.4,0.00014246,2]
[322961945,1713547876487,-3103.16,0.00014246,2]
[322961946,1713547876497,-579.92,0.00014246,2]
[322961947,1713547876508,-6085.95,0.00014246,2]
[322961948,1713547876519,-500.0,0.00014246,2]
[322961949,1713547876528,-500.0,0.00014246,2]
[322961950,1713547876539,-7088.93,0.00014246,2]
[322961951,1713547876549,-4287.56,0.00014246,2]
[322961952,1713547876559,-5419.22,0.00014246,2]
[322961953,1713547876569,-1208.62,0.00014246,2]
[322961954,1713547876580,-929.94,0.00014246,2]
[322961955,1713547876590,-1855.49,0.00014246,2]
[322961956,1713547876600,-645.16,0.00014246,2]
[322961957,1713547876611,-2058.59,0.00014246,2]
[322961958,1713547876621,-500.0,0.00014246,2]
[322961959,1713547876637,-786.89,0.00014246,2]
[322961960,1713547876648,-1101.99,0.00014246,2]
[322961961,1713547876658,-4357.62,0.00014246,2]
[322961962,1713547876668,-1709.63,0.00014246,2]
[322961963,1713547876678,-2921.52,0.00014246,2]
[322961964,1713547876688,-3605.39,0.00014246,2]
[322961965,1713547876699,-2913.82,0.00014246,2]
[322961966,1713547876709,-2284.23,0.00014246,2]
[322961967,1713547876719,-3148.21,0.00014246,2]
[322961968,1713547876729,-3089.2,0.00014246,2]
[322961969,1713547876739,-906.26,0.00014246,2]
[322961970,1713547876749,-887.62,0.00014246,2]
[322961971,1713547876759,-8483.21,0.00014246,2]
[322961972,1713547876770,-1335.04,0.00014246,2]
[322961973,1713547876780,-500.0,0.00014246,2]
[322961974,1713547876790,-10199.48,0.00014246,2]
[322961975,1713547876801,-500.0,0.00014246,2]
[322961976,1713547876811,-2270.49,0.00014246,2]
[322961977,1713547876822,-2491.95,0.00014246,2]
[322961978,1713547876832,-1698.74,0.00014246,2]
[322961979,1713547876842,-500.0,0.00014246,2]
[322961980,1713547876852,-500.0,0.00014246,2]
[322961981,1713547876862,-500.0,0.00014246,2]
[322961982,1713547876872,-500.0,0.00014246,2]
[322961983,1713547876887,-500.0,0.00014246,2]
[322961984,1713547876897,-811.94,0.00014246,2]
[322961985,1713547876909,-2166.43,0.00014246,2]
[322961986,1713547876919,-2680.87,0.00014246,2]
[322961987,1713547876929,-5021.77,0.00014246,2]
[322961988,1713547876940,-500.0,0.00014246,2]
[322961989,1713547876952,-3326.38,0.00014246,2]
[322961990,1713547876963,-7308.28,0.00014246,2]
[322961991,1713547876974,-3575.85,0.00014246,2]
[322961992,1713547876986,-500.0,0.00014246,2]
[322961993,1713547876996,-500.0,0.00014246,2]
[322961994,1713547877006,-500.0,0.00014246,2]
[322961995,1713547877017,-5687.27,0.00014246,2]
[322961996,1713547877027,-866.36,0.00014246,2]
[322961997,1713547877037,-3274.38,0.00014246,2]
[322961998,1713547877048,-2569.93,0.00014246,2]
[322961999,1713547877058,-3955.01,0.00014246,2]
[322962000,1713547877069,-566.94,0.00014246,2]
[322962001,1713547877080,-2170.26,0.00014246,2]
[322962002,1713547877090,-500.0,0.00014246,2]
[322962003,1713547877100,-500.0,0.00014246,2]
[322962004,1713547877110,-926.38,0.00014246,2]
[322962005,1713547877120,-531.64,0.00014246,2]
[322962006,1713547877132,-2771.27,0.00014246,2]
[322962007,1713547877142,-3429.85,0.00014246,2]
[322962008,1713547877152,-811.58,0.00014246,2]
[322962009,1713547877163,-500.0,0.00014246,2]
[322962010,1713547877173,-500.0,0.00014246,2]
[322962011,1713547877183,-4169.76,0.00014246,2]
[322962012,1713547877193,-1171.56,0.00014246,2]
[322962013,1713547877203,-7301.02,0.00014246,2]
[322962014,1713547877214,-740.92,0.00014246,2]
[322962015,1713547877224,-5217.82,0.00014246,2]
[322962016,1713547877234,-276.11,0.00014246,2]
[322962017,1713547877244,-1673.96,0.00014246,2]
[322962018,1713547877254,-500.0,0.00014246,2]
[322962019,1713547877264,-500.0,0.00014246,2]
[322962020,1713547877274,-640.68,0.00014246,2]
[322962021,1713547877284,-3617.11,0.00014246,2]
[322962022,1713547877294,-2057.12,0.00014246,2]
[322962023,1713547877304,-500.0,0.00014246,2]